bitfinex/quotes_BTCUSD_20220101
["timestamp","ask_amount","ask_price","bid_price","bid_amount"]
[1641069774709,1.97760647,47445.0,47444.0,8.01135318]
[1641069776668,1.97760647,47445.0,47444.0,7.58960318]
[1641069777268,1.97760647,47445.0,47444.0,7.16784918]
[1641069777870,1.97760647,47445.0,47444.0,6.74609118]
[1641069778271,2.57366133,47445.0,47444.0,5.90245718]
[1641069778470,2.57887103,47445.0,47444.0,5.88865718]
[1641069778670,2.67877103,47445.0,47444.0,5.88865718]
[1641069778871,2.67877103,47445.0,47444.0,5.46682518]
[1641069779275,3.17877103,47445.0,47444.0,3.78874364]
[1641069779511,3.18377103,47445.0,47444.0,2.94506964]
[1641069779911,3.18377103,47445.0,47444.0,2.52322764]
[1641069780114,4.86162572,47445.0,47444.0,2.52322764]
[1641069780511,4.86162572,47445.0,47444.0,2.10139964]
[1641069780512,5.02678075,47445.0,47444.0,2.10139964]
[1641069780912,5.02678075,47445.0,47444.0,1.67956264]
[1641069781111,6.24478075,47445.0,47444.0,1.67956264]
[1641069781512,6.14478075,47445.0,47444.0,1.25773864]
[1641069782013,5.12678075,47445.0,47444.0,0.83592064]
[1641069782414,6.14478075,47445.0,47444.0,0.83592064]
[1641069782614,5.12678075,47445.0,47444.0,0.83592064]
[1641069784468,6.24478075,47445.0,47444.0,0.83592064]
[1641069784871,5.12678075,47445.0,47444.0,0.83592064]
[1641069786177,6.20512999,47445.0,47444.0,0.77268655]
[1641069787008,6.20512999,47445.0,47444.0,0.35084555]
[1641069787009,5.12678075,47445.0,47444.0,0.35084555]
[1641069787410,1.23,47444.0,47442.0,7.67275388]
[1641069787613,2.56819402,47443.0,47442.0,7.67275388]
[1641069787810,4.89497268,47443.0,47442.0,7.67275388]
[1641069788012,5.52943365,47443.0,47442.0,7.25090588]
[1641069788210,7.20728834,47443.0,47442.0,7.25090588]
[1641069788413,6.25728834,47443.0,47442.0,7.25090588]
[1641069788811,5.17889282,47443.0,47442.0,7.25090588]
[1641069789211,6.25729459,47443.0,47442.0,6.82905888]
[1641069789413,3.50103813,47443.0,47442.0,6.82905888]
[1641069789812,5.83432967,47443.0,47442.0,6.40721188]
[1641069791852,5.83432967,47443.0,47442.0,5.98536388]
[1641069792053,6.01461067,47443.0,47442.0,5.98536388]
[1641069792456,6.01461067,47443.0,47442.0,5.56351188]
[1641069794256,4.9362098,47443.0,47442.0,5.56351188]
[1641069794704,4.9362098,47443.0,47442.0,5.56319488]
[1641069796107,4.9362098,47443.0,47442.0,3.88514503]
[1641069796506,5.0361098,47443.0,47442.0,3.88514503]
[1641069797407,6.11485372,47443.0,47442.0,3.88514503]
[1641069798557,6.11485372,47443.0,47442.0,3.46332103]
[1641069799660,6.11485372,47443.0,47442.0,3.04149903]
[1641069799861,5.0361098,47443.0,47442.0,3.04149903]
[1641069800059,5.0361098,47443.0,47442.0,3.01049784]
[1641069800260,5.0361098,47443.0,47442.0,2.58866984]
[1641069800659,5.0361098,47443.0,47442.0,2.16683884]
[1641069801260,5.0361098,47443.0,47442.0,1.74501184]
[1641069801902,5.0361098,47443.0,47442.0,1.32317484]
[1641069802502,6.11485736,47443.0,47442.0,1.32317484]
[1641069802902,3.35825511,47443.0,47442.0,1.32317484]
[1641069803505,6.11485736,47443.0,47442.0,1.32317484]
[1641069803707,3.35825511,47443.0,47442.0,1.32317484]
[1641069804108,5.0361098,47443.0,47442.0,1.32317484]
[1641069804306,5.0361098,47443.0,47442.0,0.90134984]
[1641069804708,0.95301,47441.0,47440.0,5.23336391]
[1641069804908,1.05521,47441.0,47440.0,5.23336391]
[1641069805107,1.68451533,47441.0,47440.0,5.23343695]
[1641069805408,4.56075316,47441.0,47440.0,5.23343695]
[1641069805663,1.68451533,47441.0,47440.0,5.23343695]
[1641069806052,5.06075316,47441.0,47440.0,5.23343695]
[1641069806254,5.06075316,47441.0,47440.0,5.22433981]
[1641069806856,5.06075316,47441.0,47440.0,4.80250181]
[1641069808255,6.13951874,47441.0,47440.0,4.80250181]
[1641069810104,5.06075316,47441.0,47440.0,4.80250181]
[1641069810501,4.34075316,47441.0,47440.0,4.80250181]
[1641069813666,2.66289847,47441.0,47440.0,4.80250181]
[1641069813867,3.12081378,47441.0,47440.0,4.80250181]
[1641069814366,2.16289847,47441.0,47440.0,4.80250181]
[1641069814571,2.66289847,47441.0,47440.0,4.80250181]
[1641069818117,2.66289847,47441.0,47440.0,4.80237465]
[1641069818318,3.62083083,47441.0,47440.0,4.80237465]
[1641069818920,3.12083083,47441.0,47440.0,4.80237465]
[1641069819121,2.16289847,47441.0,47440.0,4.80237465]
[1641069820219,2.16009847,47441.0,47440.0,4.80237465]
[1641069833004,3.11890129,47441.0,47440.0,4.80237465]
[1641069834506,2.16009847,47441.0,47440.0,4.80237465]
[1641069835110,2.16009847,47441.0,47440.0,4.80230161]
[1641069837765,2.16009847,47441.0,47440.0,4.82413366]
[1641069838764,2.16009847,47441.0,47440.0,4.84436943]
[1641069838962,2.16009847,47441.0,47440.0,4.82253738]
[1641069839801,2.16009847,47441.0,47440.0,4.8422591]
[1641069840002,2.16009847,47441.0,47440.0,4.82202333]
[1641069840804,2.16009847,47441.0,47440.0,4.84241012]
[1641069841007,2.16009847,47441.0,47440.0,4.8226884]
[1641069841805,2.16009847,47441.0,47440.0,4.84367801]
[1641069842007,2.16009847,47441.0,47440.0,4.82329122]
[1641069842807,2.16009847,47441.0,47440.0,4.84464527]
[1641069843010,2.16009847,47441.0,47440.0,4.82365566]
[1641069843856,2.16009847,47441.0,47440.0,4.82402518]
[1641069844857,2.16009847,47441.0,47440.0,4.84375133]
[1641069845057,2.16009847,47441.0,47440.0,4.82202776]
[1641069845764,2.16009847,47441.0,47440.0,4.84293123]
[1641069845958,2.16009847,47441.0,47440.0,4.82320508]
[1641069846759,2.16009847,47441.0,47440.0,4.84457039]
[1641069847009,2.16009847,47441.0,47440.0,4.82366692]
[1641069847907,2.16009847,47441.0,47440.0,4.84565485]
[1641069848709,2.16009847,47441.0,47440.0,4.82250698]
[1641069849910,2.16009847,47441.0,47440.0,4.82053511]
[1641069850869,2.16009847,47441.0,47440.0,4.84234845]
[1641069851067,2.16009847,47441.0,47440.0,4.82411495]
[1641069851869,2.16009847,47441.0,47440.0,4.84506198]
[1641069852071,2.75039847,47441.0,47440.0,4.82324864]
[1641069852271,2.75560817,47441.0,47440.0,4.82324864]
[1641069852671,3.71369477,47441.0,47440.0,4.82324864]
[1641069852870,3.71369477,47441.0,47440.0,4.843399]
[1641069853170,2.75560817,47441.0,47440.0,4.82245197]
[1641069853970,2.75560817,47441.0,47440.0,3.14433082]
[1641069854269,2.75560817,47441.0,47440.0,3.12418046]
[1641069854511,3.25560817,47441.0,47440.0,3.12418046]
[1641069858862,4.93373331,47441.0,47440.0,3.12418046]
[1641069859463,3.25560817,47441.0,47440.0,3.12418046]
[1641069860262,3.25560817,47441.0,47440.0,3.11418046]
[1641069860962,4.93373331,47441.0,47440.0,3.11418046]
[1641069861375,3.25560817,47441.0,47440.0,3.11418046]
[1641069861565,4.93373331,47441.0,47440.0,3.11418046]
[1641069864626,4.93373331,47441.0,47440.0,1.43604125]
[1641069865328,4.93373331,47441.0,47440.0,1.01415725]
[1641069865329,7.04427723,47441.0,47440.0,1.01415725]
[1641069865528,7.48938148,47441.0,47440.0,0.65242609]
[1641069865763,8.42710048,47441.0,47440.0,0.16717253]
[1641069865962,8.60949158,47441.0,47440.0,0.10392588]
[1641069866164,8.75465248,47441.0,47440.0,0.05117888]
[1641069866363,0.180281,47437.0,47421.0,0.001]
[1641069866562,0.005,47432.0,47425.0,0.05274621]
[1641069866763,0.775581,47428.0,47425.0,0.05274621]
[1641069866961,0.822781,47428.0,47427.0,0.04]
[1641069867163,1.45208633,47428.0,47427.0,0.04031039]
[1641069867362,1.55198633,47428.0,47427.0,0.04031039]
[1641069867663,2.52977048,47428.0,47427.0,0.04031039]
[1641069870411,3.36393644,47428.0,47427.0,0.04031039]
[1641069871110,2.52977048,47428.0,47427.0,0.04031039]
[1641069871310,2.52477048,47428.0,47427.0,0.04031039]
[1641069871514,2.04698633,47428.0,47427.0,0.04031039]
[1641069871913,1.45668633,47428.0,47427.0,0.04031039]
[1641069872112,1.25678633,47428.0,47427.0,0.04031039]
[1641069872315,1.20958633,47428.0,47427.0,0.04031039]
[1641069872512,1.80586358,47428.0,47427.0,0.04031039]
[1641069872913,0.70958633,47428.0,47427.0,0.39227224]
[1641069873579,0.70958633,47428.0,47427.0,1.50227224]
[1641069873778,0.1,47429.0,47427.0,1.96958018]
[1641069873978,0.05,47429.0,47427.0,1.52354315]
[1641069874181,0.00906058,47432.0,47428.0,0.00029213]
[1641069875081,0.00906058,47432.0,47429.0,0.05272]
[1641069875481,0.00906058,47432.0,47430.0,0.05297665]
[1641069875883,0.00906058,47432.0,47431.0,0.00023736]
[1641069876283,0.05,47433.0,47431.0,0.00023736]
[1641069876484,0.05,47433.0,47431.0,0.10567936]
[1641069876687,0.180281,47432.0,47431.0,0.10567936]
[1641069876923,0.230281,47432.0,47431.0,0.105442]
[1641069877826,0.230281,47432.0,47431.0,0.15816322]
[1641069880682,0.230281,47432.0,47431.0,0.05272122]
[1641069880874,0.05,47432.0,47431.0,0.05272122]
[1641069881076,0.152722,47433.0,47431.0,0.05272122]
[1641069881475,0.102722,47433.0,47432.0,0.0002191]
[1641069881677,0.152722,47433.0,47432.0,0.0002191]
[1641069888025,1.35129,47433.0,47432.0,0.0002191]
[1641069888290,0.333003,47433.0,47432.0,0.0002191]
[1641069888492,1.631571,47433.0,47432.0,0.0002191]
[1641069888890,0.433003,47433.0,47432.0,0.0002191]
[1641069889490,1.631571,47433.0,47432.0,0.0002191]
[1641069889890,0.433003,47433.0,47432.0,0.0002191]
[1641069894427,1.563003,47433.0,47432.0,0.0002191]
[1641069894932,1.568003,47433.0,47432.0,0.0002191]
[1641069895128,2.09730833,47433.0,47432.0,0.0002191]
[1641069895330,2.09230833,47433.0,47432.0,0.0002191]
[1641069899627,2.68995188,47433.0,47432.0,0.0002191]
[1641069900430,2.73715188,47433.0,47432.0,0.0002191]
[1641069900730,2.13950833,47433.0,47432.0,0.0002191]
[1641069900928,1.00950833,47433.0,47432.0,0.0002191]
[1641069901328,1.34950833,47433.0,47432.0,0.0002191]
[1641069901530,1.94715188,47433.0,47432.0,0.0002191]
[1641069902529,1.34950833,47433.0,47432.0,0.0002191]
[1641069905186,1.73950833,47433.0,47432.0,0.0002191]
[1641069906589,1.73950833,47433.0,47431.0,0.05272122]
[1641069906789,0.180281,47432.0,47431.0,0.05272122]
[1641069907034,0.227481,47432.0,47431.0,0.05272122]
[1641069907236,0.75678633,47432.0,47431.0,0.05272122]
[1641069907635,0.85678633,47432.0,47431.0,0.05272122]
[1641069909338,0.85678633,47432.0,47431.0,0.09297268]
[1641069909637,0.70958633,47432.0,47431.0,0.09297268]
[1641069909846,0.59764355,47434.0,47432.0,1.25]
[1641069910039,0.71717226,47436.0,47434.0,1.25]
[1641069910040,0.03261581,47436.0,47434.0,1.25]
[1641069910246,0.00906051,47440.0,47436.0,0.97]
[1641069910437,0.00906051,47440.0,47438.0,0.00125689]
[1641069910438,0.62982729,47439.0,47438.0,0.00125689]
[1641069910677,0.00906051,47440.0,47439.0,0.00127585]
[1641069910869,0.00906051,47440.0,47439.0,1.39285555]
[1641069911070,0.00906051,47440.0,47439.0,0.36294684]
[1641069911270,0.00906051,47440.0,47439.0,0.96294684]
[1641069911470,0.052703,47450.0,47439.0,0.96294684]
[1641069911671,0.5153,47451.0,47449.0,0.0012383]
[1641069912071,0.5153,47451.0,47449.0,0.05393979]
[1641069912471,0.5153,47451.0,47450.0,0.37900951]
[1641069912871,1.46876033,47451.0,47450.0,0.37900951]
[1641069913072,1.46876033,47451.0,47449.0,0.10663879]
[1641069913274,1.46876033,47451.0,47450.0,0.0187986]
[1641069913472,1.46863253,47451.0,47450.0,0.0187986]
[1641069913873,1.56863253,47451.0,47450.0,0.0187986]
[1641069914518,1.56863253,47451.0,47449.0,0.05270149]
[1641069914723,1.56863253,47451.0,47450.0,0.04025146]
[1641069915119,0.6153,47451.0,47450.0,0.4890572]
[1641069915320,0.6153,47451.0,47450.0,0.04025146]
[1641069915619,0.668004,47451.0,47450.0,0.04025146]
[1641069918182,0.768004,47451.0,47450.0,0.04025146]
[1641069919981,0.768004,47451.0,47450.0,0.25025146]
[1641069921182,0.768004,47451.0,47450.0,0.25031146]
[1641069923824,1.48557647,47451.0,47450.0,0.25031146]
[1641069924628,1.2655316,47451.0,47450.0,0.25031146]
[1641069925229,1.2605316,47451.0,47450.0,0.25031146]
[1641069926775,2.6188654,47451.0,47450.0,0.25031146]
[1641069927174,0.663004,47451.0,47450.0,0.25031146]
[1641069927775,1.25533375,47451.0,47450.0,0.25031146]
[1641069929537,0.658004,47451.0,47450.0,0.25031146]
[1641069934680,1.25533375,47451.0,47450.0,0.25031146]
[1641069935377,0.658004,47451.0,47450.0,0.25031146]
[1641069935579,1.85623148,47451.0,47450.0,0.25031146]
[1641069936580,1.80352748,47451.0,47450.0,0.25031146]
[1641069937919,1.85622848,47451.0,47450.0,0.25031146]
[1641069940122,1.80352748,47451.0,47450.0,0.25031146]
[1641069940322,1.80352748,47451.0,47450.0,0.69746251]
[1641069940768,1.76352748,47451.0,47450.0,0.69746251]
[1641069941571,1.76352748,47451.0,47450.0,0.27080426]
[1641069942068,1.81352748,47451.0,47450.0,0.27080426]
[1641069943471,1.81352748,47451.0,47450.0,0.25031146]
[1641069943873,1.81352748,47451.0,47450.0,0.69617543]
[1641069944617,1.81352748,47451.0,47450.0,0.7160062]
[1641069945517,1.81352748,47451.0,47450.0,0.72675874]
[1641069945717,1.81352748,47451.0,47450.0,0.70692797]
[1641069946119,1.44653108,47451.0,47450.0,0.70692797]
[1641069946519,1.81343529,47451.0,47450.0,0.71780941]
[1641069946718,1.81343529,47451.0,47450.0,0.70705687]
[1641069947120,1.32601714,47451.0,47450.0,0.70705687]
[1641069947519,0.6153,47451.0,47450.0,0.71802511]
[1641069947720,0.6153,47451.0,47450.0,0.70714367]
[1641069948179,1.32363272,47451.0,47450.0,0.70714367]
[1641069948674,1.32363272,47451.0,47450.0,0.72867446]
[1641069948875,1.32363272,47451.0,47450.0,0.27184225]
[1641069949778,1.32363272,47451.0,47450.0,0.25031146]
[1641069950480,0.6153,47451.0,47450.0,0.25031146]
[1641069952841,1.20267937,47451.0,47450.0,0.25031146]
[1641069954841,0.6153,47451.0,47450.0,0.25031146]
[1641069955900,1.20267937,47451.0,47450.0,0.25031146]
[1641069957102,0.6153,47451.0,47450.0,0.25031146]
[1641069957504,1.20267937,47451.0,47450.0,0.25031146]
[1641069959003,0.6153,47451.0,47450.0,0.25031146]
[1641069959818,1.20267937,47451.0,47450.0,0.25031146]
[1641069960618,0.6153,47451.0,47450.0,0.25031146]
[1641069961217,1.20267937,47451.0,47450.0,0.25031146]
[1641069961819,0.6153,47451.0,47450.0,0.25031146]
[1641069971970,1.20267937,47451.0,47450.0,0.25031146]
[1641069972370,0.6153,47451.0,47450.0,0.25031146]
[1641069975834,1.19899538,47451.0,47450.0,0.25031146]
[1641069976037,1.19899538,47451.0,47450.0,1.146e-05]
[1641069976038,2.49619538,47451.0,47450.0,1.146e-05]
[1641069976233,2.84708098,47451.0,47450.0,1.146e-05]
[1641069976634,4.04531711,47451.0,47450.0,1.146e-05]
[1641069977233,0.97008672,47440.0,47437.0,0.21085778]
[1641069977433,0.099916,47439.0,47437.0,0.21085778]
[1641069977633,0.099916,47439.0,47438.0,0.00010955]
[1641069978298,0.099916,47439.0,47434.0,0.01923553]
[1641069978299,0.099916,47439.0,47437.0,0.00012781]
[1641069978494,0.099916,47439.0,47435.0,0.00016432]
[1641069978992,0.6403,47438.0,47435.0,0.00016432]
[1641069979192,0.099926,47437.0,47435.0,0.00016432]
[1641069980193,0.70520293,47436.0,47435.0,0.00016432]
[1641069980396,0.70520293,47436.0,47435.0,0.05288451]
[1641069980397,0.75240293,47436.0,47435.0,0.05288451]
[1641069980593,0.85240293,47436.0,47435.0,0.05288451]
[1641069981194,0.87278238,47436.0,47435.0,0.05288451]
[1641069981796,1.32525273,47436.0,47435.0,0.05288451]
[1641069982033,1.30487328,47436.0,47435.0,0.05288451]
[1641069982235,1.32584277,47436.0,47435.0,0.05288451]
[1641069982439,0.77337242,47436.0,47435.0,0.05288451]
[1641069983038,0.0472,47436.0,47435.0,0.05288451]
[1641069983539,0.46754723,47436.0,47435.0,0.05288451]
[1641069983738,1.05567997,47436.0,47435.0,0.05288451]
[1641069984140,0.63533274,47436.0,47435.0,0.05288451]
[1641069985140,0.65354551,47436.0,47435.0,0.05288451]
[1641069985340,0.57541277,47436.0,47435.0,0.05288451]
[1641069985538,1.16354551,47436.0,47435.0,0.05288451]
[1641069985778,1.61423091,47436.0,47435.0,0.05288451]
[1641069986082,1.16354551,47436.0,47435.0,0.05288451]
[1641069986679,1.14533274,47436.0,47435.0,0.05288451]
[1641069986880,1.16573582,47436.0,47435.0,0.05288451]
[1641069987080,0.63533274,47436.0,47435.0,0.05288451]
[1641069987280,0.65647351,47436.0,47435.0,0.05288451]
[1641069988081,0.63533274,47436.0,47435.0,0.05288451]
[1641069988280,0.65646243,47436.0,47435.0,0.05288451]
[1641069989282,1.05539367,47436.0,47435.0,0.05288451]
[1641069989531,0.65539367,47436.0,47435.0,0.05288451]
[1641069990332,0.65579455,47436.0,47435.0,0.05288451]
[1641069990535,0.06766181,47436.0,47435.0,0.05288451]
[1641069991441,0.57780478,47436.0,47435.0,0.05288451]
[1641069992234,0.5572,47436.0,47435.0,0.05288451]
[1641069993035,0.0472,47436.0,47435.0,0.05288451]
[1641069993282,0.02056055,47436.0,47435.0,0.05288451]
[1641069994287,0.05,47437.0,47435.0,0.05288451]
[1641069994485,1.13927607,47440.0,47435.0,0.05288451]
[1641069994687,0.44890347,47439.0,47437.0,0.10543915]
[1641069994885,0.45342008,47439.0,47437.0,0.10543915]
[1641069995084,0.1,47439.0,47437.0,0.10543915]
[1641069995885,0.15272,47439.0,47437.0,0.10543915]
[1641069996085,0.05272,47439.0,47437.0,0.10543915]
[1641069997037,0.5072857,47439.0,47437.0,0.10543915]
[1641069997438,0.6072857,47439.0,47437.0,0.10543915]
[1641069998239,0.15272,47439.0,47437.0,0.10543915]
[1641069998440,0.17414465,47439.0,47437.0,0.10543915]
[1641069998640,0.07414465,47439.0,47437.0,0.10543915]
[1641069999243,0.09450782,47439.0,47437.0,0.10543915]
[1641069999443,0.05272,47439.0,47437.0,0.10543915]
[1641069999642,0.4516916,47438.0,47437.0,0.10543915]
[1641070000042,0.1,47438.0,47437.0,0.10556696]
[1641070000242,0.44,47438.0,47437.0,0.10556696]
[1641070001475,0.46121071,47438.0,47437.0,0.10556696]
[1641070002376,0.44,47438.0,47437.0,0.10556696]
[1641070002575,0.46193493,47438.0,47437.0,0.10556696]
[1641070003276,0.44,47438.0,47437.0,0.10556696]
[1641070003476,0.45975598,47438.0,47437.0,0.10556696]
[1641070003677,0.11975598,47438.0,47437.0,0.10556696]
[1641070003876,0.01975598,47438.0,47437.0,0.10556696]
[1641070004079,0.46975598,47438.0,47437.0,0.10556696]
[1641070004279,0.56975598,47438.0,47437.0,0.10556696]
[1641070004952,0.56927141,47438.0,47437.0,0.10556696]
[1641070005348,0.55,47438.0,47437.0,0.10556696]
[1641070005548,0.56964935,47438.0,47437.0,0.10556696]
[1641070006248,0.55,47438.0,47437.0,0.10556696]
[1641070006449,0.57107063,47438.0,47437.0,0.10556696]
[1641070008050,0.55,47438.0,47437.0,0.10556696]
[1641070008284,0.56977324,47438.0,47437.0,0.10556696]
[1641070008483,0.58916424,47438.0,47437.0,0.10556696]
[1641070009484,0.56865599,47438.0,47437.0,0.10556696]
[1641070010087,0.11865599,47438.0,47437.0,0.10556696]
[1641070010287,0.05,47439.0,47437.0,0.10556696]
[1641070010486,0.02165293,47438.0,47437.0,0.10556696]
[1641070011389,0.05,47439.0,47437.0,0.10556696]
[1641070011785,1.13887103,47440.0,47437.0,0.10556696]
[1641070012028,1.13387103,47440.0,47437.0,0.10556696]
[1641070012431,0.052715,47439.0,47437.0,0.10556696]
[1641070012929,1.13387103,47440.0,47439.0,0.2761206]
[1641070013131,1.13540521,47440.0,47439.0,0.2761206]
[1641070013429,1.15378671,47440.0,47439.0,0.27621189]
[1641070014330,1.11508672,47440.0,47439.0,0.27621189]
[1641070014529,1.13647666,47440.0,47439.0,0.27621189]
[1641070015530,1.15619513,47440.0,47439.0,0.27621189]
[1641070016382,1.11508672,47440.0,47439.0,0.27621189]
[1641070016684,1.13695055,47440.0,47439.0,0.27621189]
[1641070018187,1.11498672,47440.0,47439.0,0.27621189]
[1641070018388,0.54319971,47459.0,47446.0,2.36688079]
[1641070018587,0.54319971,47459.0,47458.0,0.0012532]
[1641070018588,0.35623133,47459.0,47458.0,0.0012532]
[1641070018787,0.35623133,47459.0,47458.0,1.49674011]
[1641070018989,0.0001,47462.0,47458.0,1.49674011]
[1641070018990,0.0001,47462.0,47459.0,1.25]
[1641070019288,0.0001,47464.0,47463.0,0.0012071]
[1641070019289,0.555899,47464.0,47463.0,0.0012071]
[1641070019533,0.0005,47472.0,47464.0,1.25]
[1641070019736,0.0003,47474.0,47471.0,1.25]
[1641070019936,0.063589,47477.0,47474.0,1.25]
[1641070019937,0.0003,47476.0,47474.0,1.25]
[1641070020139,0.0003,47485.0,47477.0,1.25]
[1641070020342,0.0003,47485.0,47476.0,1.25]
[1641070020343,0.018394,47484.0,47482.0,0.09127273]
[1641070020541,0.018394,47484.0,47482.0,0.00127273]
[1641070020735,0.00065728,47480.0,47476.0,0.26232575]
[1641070020940,0.00065728,47480.0,47477.0,0.63188]
[1641070021143,0.00063902,47479.0,47477.0,0.63188]
[1641070021542,0.00062076,47478.0,47477.0,1.23052132]
[1641070021938,0.00062076,47478.0,47477.0,1.28318589]
[1641070022136,0.00062076,47478.0,47477.0,0.68454457]
[1641070022336,0.00062076,47478.0,47477.0,0.70396631]
[1641070023286,0.00062076,47478.0,47477.0,1.540659]
[1641070023486,0.00062076,47478.0,47477.0,1.52123726]
[1641070023688,0.00062076,47478.0,47477.0,1.18229126]
[1641070024288,0.00062076,47478.0,47477.0,1.20317149]
[1641070024489,0.00047076,47478.0,47477.0,1.20317149]
[1641070025088,0.00047076,47478.0,47477.0,1.1603386]
[1641070025389,0.00047076,47478.0,47477.0,1.18187405]
[1641070026389,0.00047076,47478.0,47477.0,1.54232739]
[1641070026591,1.25,47474.0,47470.0,0.3230992]
[1641070026791,0.28965068,47465.0,47463.0,0.95785714]
[1641070027053,0.28965068,47465.0,47460.0,0.10903295]
[1641070027054,1.7709568,47464.0,47460.0,0.00903295]
[1641070027353,0.33863,47461.0,47460.0,0.00903295]
[1641070027556,0.6375,47461.0,47460.0,0.41153107]
[1641070027752,0.63766038,47461.0,47460.0,0.41153107]
[1641070027951,0.97629038,47461.0,47460.0,0.41153107]
[1641070028155,0.00016038,47461.0,47460.0,0.41153107]
[1641070028353,0.021383,47461.0,47460.0,0.40249812]
[1641070029055,0.021383,47461.0,47460.0,1.06676015]
[1641070029455,0.021383,47461.0,47460.0,0.40249812]
[1641070030256,0.00016038,47461.0,47460.0,0.40249812]
[1641070031489,0.33879038,47461.0,47460.0,0.40249812]
[1641070032390,0.35769663,47461.0,47460.0,0.40249812]
[1641070033487,0.37909266,47461.0,47460.0,0.40249812]
[1641070033688,0.36018641,47461.0,47460.0,0.40249812]
[1641070034548,0.35811303,47461.0,47460.0,0.40249812]
[1641070034950,0.01948303,47461.0,47460.0,0.40249812]
[1641070035348,0.03868892,47461.0,47460.0,0.40249812]
[1641070035550,0.01936627,47461.0,47460.0,0.40249812]
[1641070036654,0.00016038,47461.0,47460.0,0.40249812]
[1641070038782,0.00016038,47461.0,47460.0,0.76249812]
[1641070039584,0.00016038,47461.0,47460.0,1.10112812]
[1641070039886,0.00016038,47461.0,47460.0,3.15132812]
[1641070040084,0.00016038,47461.0,47460.0,3.88342812]
[1641070040285,0.00016038,47461.0,47460.0,3.98342812]
[1641070040683,0.00016038,47461.0,47460.0,4.02842812]
[1641070041186,0.00016038,47461.0,47460.0,4.12842812]
[1641070041586,0.00016038,47461.0,47460.0,4.02842812]
[1641070042031,0.00016038,47461.0,47460.0,4.13376512]
[1641070043231,0.00016038,47461.0,47460.0,3.01576512]
[1641070043633,0.00016038,47461.0,47460.0,4.13376512]
[1641070044835,0.00016038,47461.0,47460.0,4.23376512]
[1641070045032,0.00016038,47461.0,47460.0,4.13376512]
[1641070046297,0.28481106,47465.0,47464.0,0.0012797]
[1641070046499,0.28481106,47465.0,47464.0,2.20963918]
[1641070046697,0.28488409,47465.0,47464.0,2.5035095]
[1641070046899,0.28488409,47465.0,47464.0,1.4635095]
[1641070047300,0.28488409,47465.0,47464.0,1.71316325]
[1641070060548,0.28488409,47465.0,47464.0,2.30943698]
[1641070061994,0.28488409,47465.0,47464.0,1.71316325]
[1641070062594,0.28488409,47465.0,47464.0,2.30943698]
[1641070064444,0.28488409,47465.0,47464.0,1.81661748]
[1641070064648,0.28488409,47465.0,47464.0,1.47798748]
[1641070064843,0.33488409,47465.0,47464.0,1.47798748]
[1641070065048,0.33488409,47465.0,47464.0,0.88171375]
[1641070065642,0.35588153,47465.0,47464.0,0.88171375]
[1641070066642,0.37749074,47465.0,47464.0,0.88171375]
[1641070066942,0.3564933,47465.0,47464.0,0.88171375]
[1641070067743,0.3769463,47465.0,47464.0,0.88171375]
[1641070067943,0.35533709,47465.0,47464.0,0.88171375]
[1641070068780,0.37694621,47465.0,47464.0,0.88171375]
[1641070068981,0.33488409,47465.0,47464.0,0.88171375]
[1641070069181,0.28488409,47465.0,47464.0,0.88171375]
[1641070069380,0.28488409,47465.0,47464.0,1.22034375]
[1641070069782,0.30303609,47465.0,47464.0,1.22161514]
[1641070070182,0.30303609,47465.0,47464.0,1.93714362]
[1641070070881,0.28488409,47465.0,47464.0,1.22161514]
[1641070071082,0.28488409,47465.0,47464.0,1.93714362]
[1641070071583,0.28488409,47465.0,47464.0,1.93587223]
[1641070072034,0.28488409,47465.0,47464.0,1.22034375]
[1641070073634,0.28488409,47465.0,47464.0,3.9611518]
[1641070073836,0.28488409,47465.0,47464.0,4.1061518]
[1641070074437,0.28488409,47465.0,47464.0,2.08087223]
[1641070074637,0.28488409,47465.0,47464.0,1.93587223]
[1641070075237,0.27988409,47465.0,47464.0,1.81862592]
[1641070075702,0.27988409,47465.0,47464.0,1.96362592]
[1641070076593,0.27981106,47465.0,47464.0,1.96362592]
[1641070080151,0.27981106,47465.0,47464.0,1.36534375]
[1641070081646,0.27981106,47465.0,47464.0,1.96360669]
[1641070081847,0.27981106,47465.0,47464.0,1.81860669]
[1641070082047,0.27981106,47465.0,47464.0,1.22034375]
[1641070082449,0.27981106,47465.0,47464.0,1.81860669]
[1641070082849,0.27981106,47465.0,47464.0,1.96360669]
[1641070083290,0.27981106,47465.0,47464.0,1.36534375]
[1641070083692,0.27981106,47465.0,47464.0,2.08087223]
[1641070085292,0.27981106,47465.0,47464.0,1.36534375]
[1641070088152,0.27981106,47465.0,47464.0,1.96360032]
[1641070088751,0.27981106,47465.0,47464.0,1.81860032]
[1641070089752,0.27981106,47465.0,47464.0,1.96360032]
[1641070091187,0.27981106,47465.0,47464.0,1.36534375]
[1641070094534,0.27981106,47465.0,47464.0,2.83611582]
[1641070098484,0.27981106,47465.0,47464.0,2.00133259]
[1641070099883,0.27981106,47465.0,47464.0,2.83957863]
[1641070100485,2.02618294,47465.0,47464.0,0.49942931]
[1641070100687,0.91750222,47464.0,47457.0,0.24507309]
[1641070100889,0.91750222,47464.0,47450.0,1.07758928]
[1641070100890,0.21076439,47457.0,47450.0,0.07878928]
[1641070101091,0.21076439,47457.0,47435.0,1.49586191]
[1641070101092,0.59637188,47451.0,47435.0,0.2004]
[1641070101286,0.00124537,47437.0,47435.0,0.2004]
[1641070101684,0.00124537,47437.0,47435.0,0.38888301]
[1641070101950,0.6373,47436.0,47435.0,0.38888301]
[1641070102149,0.690018,47436.0,47435.0,0.38888301]
[1641070102353,0.0472,47436.0,47435.0,0.88572959]
[1641070102549,0.0472,47436.0,47435.0,0.72805971]
[1641070102751,0.0472,47436.0,47435.0,1.04680937]
[1641070102951,0.06639186,47436.0,47435.0,1.35471412]
[1641070103550,0.06639186,47436.0,47435.0,1.49971412]
[1641070103551,0.01919186,47436.0,47435.0,1.49971412]
[1641070104650,0.01919186,47436.0,47435.0,1.97843425]
[1641070105050,0.01919186,47436.0,47435.0,1.35471412]
[1641070105250,0.00906046,47440.0,47435.0,1.35471412]
[1641070105452,0.00906046,47440.0,47437.0,0.052707]
[1641070105902,0.00906046,47440.0,47438.0,0.00041993]
[1641070106104,0.00126905,47439.0,47438.0,0.00041993]
[1641070106304,0.88997105,47439.0,47438.0,0.00041993]
[1641070106507,0.93997105,47439.0,47436.0,0.00045645]
[1641070106705,1.08997105,47439.0,47436.0,0.00045645]
[1641070107104,1.11176947,47439.0,47436.0,0.00045645]
[1641070107706,0.052715,47438.0,47436.0,0.00045645]
[1641070109749,0.648702,47437.0,47436.0,0.00045645]
[1641070109946,1.68480912,47437.0,47436.0,0.00045645]
[1641070110147,1.248702,47437.0,47436.0,0.00045645]
[1641070110547,1.67970459,47437.0,47436.0,0.00045645]
[1641070111150,1.70132627,47437.0,47436.0,0.00045645]
[1641070111349,1.70555739,47437.0,47436.0,0.00045645]